bitfinex/quotes_ETHUSD_20250219
["timestamp","ask_amount","ask_price","bid_price","bid_amount"]
[1739963172736,3.8031,2735.2,2734.5,0.759]
[1739963172737,2.74372709,2735.0,2734.5,0.759]
[1739963173250,0.8229,2734.9,2734.1,0.7939]
[1739963176391,3.7628,2735.2,2734.5,0.7534]
[1739963183815,0.92,2735.3,2734.5,0.7534]
[1739963184055,0.92,2735.3,2734.7,0.7849]
[1739963184190,0.92,2735.3,2734.9,0.7849]
[1739963188837,0.92,2735.3,2735.0,0.7765]
[1739963189009,0.5,2735.6,2735.0,0.7765]
[1739963190038,0.5,2735.6,2735.1,0.8118]
[1739963194941,0.5,2735.6,2735.2,0.7788]
[1739963195102,0.5,2735.6,2735.2,5.9476]
[1739963197754,0.5,2735.6,2735.3,0.7863]
[1739963211673,0.5,2735.6,2735.4,5.1688]
[1739963212174,0.5,2735.6,2735.5,0.7955]
[1739963212474,0.5,2735.6,2735.5,5.9643]
[1739963213556,0.5,2735.6,2735.5,8.9643]
[1739963216602,0.5,2735.6,2735.5,9.2273]
[1739963218071,0.5,2735.6,2735.5,5.1688]
[1739963218272,0.5,2735.6,2735.5,5.4318]
[1739963221173,0.5,2735.6,2735.5,5.1688]
[1739963225418,0.5,2735.6,2735.5,5.16879925]
[1739963226833,0.5,2735.6,2735.2,5.43179925]
[1739963228904,0.5,2735.6,2735.0,0.74457758]
[1739963228905,0.7941,2735.3,2734.6,5.16879925]
[1739963229095,0.7941,2735.1,2734.6,5.43179925]
[1739963229518,0.7941,2735.1,2734.6,5.16879925]
[1739963229795,0.7508,2735.0,2734.6,5.16879925]
[1739963231495,0.7942,2735.5,2734.6,5.16879925]
[1739963233047,0.797,2735.3,2734.7,0.263]
[1739963233334,0.35407271,2735.2,2734.7,0.263]
[1739963233535,0.797,2735.1,2734.7,0.263]
[1739963234511,0.797,2735.1,2734.4,8.219]
[1739963236039,0.797,2735.1,2734.5,0.03656554]
[1739963236349,0.797,2735.1,2734.6,0.8064]
[1739963236644,0.797,2735.1,2734.5,0.74004045]
[1739963236846,0.797,2735.1,2734.4,14.19859925]
[1739963238156,0.797,2735.1,2734.4,13.38779925]
[1739963238764,0.797,2735.1,2734.5,0.7911]
[1739963239460,0.797,2735.1,2734.6,5.16879925]
[1739963240618,0.797,2735.1,2734.6,5.43179925]
[1739963244935,0.797,2735.1,2734.4,8.219]
[1739963246362,0.7699,2734.8,2734.4,8.219]
[1739963248575,0.7699,2734.8,2734.2,0.263]
[1739963249576,0.7699,2734.8,2733.8,13.38979925]
[1739963249875,0.7699,2734.8,2733.9,0.263]
[1739963250553,0.7527,2734.6,2733.8,13.38979925]
[1739963250773,0.7829,2734.4,2733.9,0.263]
[1739963255591,0.7829,2734.4,2733.8,8.221]
[1739963265125,0.7829,2734.4,2733.9,0.03657404]
[1739963265484,0.7829,2734.4,2733.8,8.221]
[1739963272123,0.7829,2734.4,2733.8,13.38979925]
[1739963272419,0.7829,2734.4,2733.9,0.263]
[1739963272984,0.7829,2734.4,2733.8,5.16879925]
[1739963278030,0.7829,2734.4,2733.7,0.263]
[1739963281900,0.7829,2734.4,2733.7,1.0154]
[1739963283403,0.7829,2734.4,2733.7,0.263]
[1739963284327,0.7829,2734.4,2733.6,0.3038]
[1739963284841,0.7829,2734.4,2733.6,0.0408]
[1739963294917,0.757,2734.3,2733.6,0.0408]
[1739963295122,0.757,2734.1,2733.6,0.0408]
[1739963299952,2.74372709,2734.1,2733.6,0.0408]
[1739963300254,0.8124,2734.0,2733.6,0.0408]
[1739963300740,0.8124,2733.7,2733.6,0.0408]
[1739963303118,0.55,2733.7,2733.6,0.0408]
[1739963303322,4.66228907,2733.7,2733.6,0.0408]
[1739963305856,4.11228907,2733.7,2733.6,0.0408]
[1739963306160,3.7833,2733.7,2733.6,0.0408]
[1739963307624,0.7833,2733.7,2733.6,0.0408]
[1739963310803,0.7959,2734.0,2733.6,0.0408]
[1739963311319,0.8025,2734.2,2733.6,0.0408]
[1739963311611,1.20980188,2734.2,2733.7,0.8187]
[1739963311826,0.7623,2734.4,2733.7,0.8187]
[1739963312198,0.7623,2734.4,2733.6,0.0408]
[1739963313323,0.7623,2734.4,2733.6,0.07737845]
[1739963313527,0.757,2734.7,2733.7,0.8184]
[1739963313727,1.27243942,2734.7,2733.9,0.8184]
[1739963315023,0.757,2734.6,2733.8,0.263]
[1739963315195,0.757,2734.4,2733.7,5.16879925]
[1739963315400,0.757,2734.4,2733.7,5.43179925]
[1739963315701,3.0,2734.5,2733.7,5.43179925]
[1739963315702,0.7605,2734.2,2733.7,5.43179925]
[1739963318812,0.3757,2734.3,2733.8,0.769]
[1739963319138,0.7543,2734.4,2733.8,0.769]
[1739963319453,0.7543,2734.7,2733.8,0.769]
[1739963323302,1.7103,2734.9,2733.8,0.769]
[1739963325549,1.7103,2734.9,2733.8,5.93779925]
[1739963325754,1.7103,2734.9,2733.9,0.8279]
[1739963327478,1.7103,2734.9,2734.1,0.8144]
[1739963327957,0.55,2734.8,2734.1,0.8144]
[1739963329371,0.54806204,2734.8,2734.1,0.8144]
[1739963329675,0.2258362,2734.7,2734.1,0.8144]
[1739963334982,1.7103,2734.9,2734.1,0.8144]
[1739963342283,0.55,2734.8,2734.1,0.8144]
[1739963348255,0.7903,2734.9,2734.1,0.8144]
[1739963348459,3.0,2735.0,2734.1,0.8144]
[1739963349158,0.55,2734.9,2734.1,0.8144]
[1739963350583,0.355,2734.8,2734.1,0.8144]
[1739963355470,1.1596,2734.8,2734.1,0.8144]
[1739963356675,0.55,2734.9,2734.1,0.8144]
[1739963359599,0.74990928,2734.7,2734.1,0.8144]
[1739963360622,3.0,2735.0,2734.1,0.8144]
[1739963369583,0.7846,2735.5,2734.2,0.03657014]
[1739963369914,8.90449067,2735.7,2734.3,0.8327]
[1739963370115,1.36198907,2735.6,2734.4,0.8184]
[1739963370299,4.36198907,2735.6,2734.6,0.8184]
[1739963372635,3.5,2735.6,2734.6,0.8184]
[1739963373003,0.5,2735.6,2734.6,5.98719925]
[1739963373533,0.5,2735.6,2734.6,5.16879925]
[1739963373697,0.5,2735.6,2734.7,0.771]
[1739963379002,4.3342,2735.5,2734.7,0.771]
[1739963379207,1.02142,2735.4,2734.7,0.771]
[1739963383455,3.55,2735.5,2734.7,0.771]
[1739963383747,3.0,2735.5,2734.7,0.771]
[1739963392667,1.36806209,2735.5,2734.7,0.771]
[1739963396366,0.5,2735.6,2734.7,0.771]
[1739963397161,0.5,2735.6,2734.9,0.7992]
[1739963398620,0.5,2735.6,2735.0,0.7657]
[1739963398833,0.5,2735.6,2734.9,1.36806209]
[1739963398834,0.5,2735.6,2735.1,0.7657]
[1739963399468,0.5,2735.6,2735.2,0.7657]
[1739963406506,0.5,2735.6,2735.5,3.53464472]
[1739963406858,0.5,2735.6,2735.5,0.7993]
[1739963408059,1.42,2735.6,2735.5,0.7993]
[1739963408260,1.42,2735.6,2735.3,0.7993]
[1739963408674,1.862,2735.6,2735.3,0.7993]
[1739963409409,1.862,2735.6,2734.9,5.43179925]
[1739963409622,1.42,2735.6,2735.0,0.771]
[1739963413015,0.7653,2735.5,2735.0,0.771]
[1739963416713,1.42,2735.6,2735.0,0.771]
[1739963422849,0.8067,2735.5,2734.8,1.0949]
[1739963424246,0.8067,2735.5,2734.9,0.34233648]
[1739963425441,1.02937,2735.5,2734.8,1.0949]
[1739963425750,0.8067,2735.5,2734.8,1.0949]
[1739963429067,0.8067,2735.5,2734.9,0.34247039]
[1739963430469,0.8067,2735.5,2734.6,1.0544]
[1739963431348,0.55,2735.4,2734.6,1.0544]
[1739963431549,0.8326,2735.3,2734.6,1.0544]
[1739963432125,0.8326,2735.3,2734.7,0.34252558]
[1739963433530,0.8326,2735.3,2734.6,1.0544]
[1739963435475,0.8326,2735.3,2734.7,0.7604]
[1739963435681,3.8215,2735.5,2734.7,0.7604]
[1739963436378,1.42,2735.6,2735.0,0.8172]
[1739963436588,1.42,2735.6,2735.2,0.8172]
[1739963437546,0.5,2735.6,2735.4,0.8026]
[1739963437749,0.5,2735.6,2735.5,0.8026]
[1739963437948,0.5,2735.6,2735.5,5.97139925]
[1739963438331,0.5,2735.6,2735.5,6.31371236]
[1739963439353,0.5,2735.6,2735.5,6.35026281]
[1739963439983,0.5,2735.6,2735.5,9.08560753]
[1739963440314,0.5,2735.6,2735.5,9.78331127]
[1739963442606,0.5,2735.6,2735.5,12.78331127]
[1739963449128,0.49811697,2735.6,2735.5,12.78331127]
[1739963450509,0.49811697,2735.6,2735.5,10.31096655]
[1739963450687,0.49811697,2735.6,2735.5,10.04796655]
[1739963450892,0.49811697,2735.6,2735.5,10.31096655]
[1739963452726,0.49811697,2735.6,2735.5,9.96865344]
[1739963453039,0.49811697,2735.6,2735.5,9.70565344]
[1739963453205,0.49811697,2735.6,2735.5,9.96865344]
[1739963453927,0.49811697,2735.6,2735.5,9.16605344]
[1739963454644,0.49811697,2735.6,2735.5,5.90305344]
[1739963454945,0.49811697,2735.6,2735.5,5.43179925]
[1739963455608,0.49811697,2735.6,2735.5,5.16879925]
[1739963455806,0.49811697,2735.6,2735.5,5.43179925]
[1739963456906,0.49811697,2735.6,2735.5,0.263]
[1739963457103,0.7806,2735.5,2735.4,8.483]
[1739963457509,0.49811697,2735.6,2735.4,8.483]
[1739963458655,0.49811697,2735.6,2735.5,2.77189782]
[1739963458825,0.49811697,2735.6,2735.5,2.73534472]
[1739963459019,0.49811697,2735.6,2735.4,8.483]
[1739963463755,0.49811697,2735.6,2735.5,0.8117]
[1739963464667,0.49811697,2735.6,2735.5,0.84825116]
[1739963465517,0.18359104,2737.5,2735.6,0.7536]
[1739963465749,0.8214,2738.1,2737.2,2.73534472]
[1739963465957,0.8214,2738.1,2737.7,2.73534472]
[1739963466271,0.8214,2738.1,2737.4,3.47302771]
[1739963467164,0.8214,2738.1,2737.5,3.0]
[1739963467347,0.7987,2738.5,2737.7,2.73534472]
[1739963468234,3.8331,2739.2,2737.7,2.73534472]
[1739963468544,3.8331,2739.2,2738.0,2.73534472]
[1739963468740,0.92131,2739.1,2738.1,0.266]
[1739963469829,0.8114,2739.0,2738.2,0.266]
[1739963471058,0.55,2738.9,2738.2,0.265]
[1739963471950,0.55,2738.9,2737.7,8.64104616]
[1739963472122,0.7835,2738.9,2737.8,0.265]
[1739963473664,0.55,2738.8,2737.8,0.265]
[1739963474465,0.43335,2738.7,2737.8,0.265]
[1739963475159,0.43335,2738.7,2738.0,2.73534472]
[1739963475859,0.43335,2738.7,2737.8,0.265]
[1739963476262,0.43335,2738.7,2737.7,8.64104616]
[1739963476430,0.55,2738.4,2737.5,0.265]
[1739963476630,0.8192,2738.1,2737.5,0.265]
[1739963477583,1.12,2738.0,2737.3,8.484]
[1739963477747,1.12,2738.0,2737.5,0.7788]
[1739963478185,0.7695,2738.4,2737.5,0.7788]
[1739963479203,0.7695,2738.4,2737.6,0.03652232]
[1739963479483,3.0,2738.5,2737.7,2.73534472]
[1739963479992,1.20285,2738.7,2737.7,7.90414397]
[1739963480177,0.7695,2738.7,2737.7,7.90414397]
[1739963481578,0.7695,2738.7,2737.8,0.8007]
[1739963483057,0.7695,2738.7,2737.9,0.265]
[1739963484871,0.92131,2739.1,2738.0,0.829]
[1739963485100,0.7649,2739.2,2738.5,0.829]
[1739963485284,0.7649,2739.2,2738.5,0.267]
[1739963486177,0.55,2739.1,2738.5,0.267]
[1739963486381,3.55,2739.1,2738.3,0.268]
[1739963486587,1.3584,2738.9,2738.3,0.268]
[1739963487463,0.8084,2738.9,2738.3,0.268]
[1739963487881,3.0,2739.3,2738.3,0.268]
[1739963488195,0.7838,2739.1,2738.4,0.81081341]
[1739963488399,0.27115377,2739.8,2738.3,0.268]
[1739963488400,0.7768,2740.0,2738.6,0.7537]
[1739963488606,0.7768,2740.0,2739.0,0.7537]
[1739963488804,0.7768,2740.0,2739.1,0.277]
[1739963489172,0.7768,2740.0,2739.0,0.7537]
[1739963489412,0.9611042,2739.5,2739.1,0.278]
[1739963490123,0.1490042,2739.5,2739.1,0.278]
[1739963491122,0.1490042,2739.5,2739.1,3.01334472]
[1739963491827,0.1490042,2739.5,2739.4,3.53714472]
[1739963492028,0.1490042,2739.5,2739.4,28.72694397]
[1739963492750,0.1490042,2739.5,2739.4,14.74157899]
[1739963492900,0.1490042,2739.5,2739.4,14.46059925]
[1739963493099,0.1490042,2739.5,2739.4,14.18159925]
[1739963493342,0.1490042,2739.5,2739.4,14.46059925]
[1739963495352,0.1490042,2739.5,2739.4,13.37979925]
[1739963499953,0.1490042,2739.5,2739.4,14.20429925]
[1739963500949,0.1490042,2739.5,2739.4,13.66079925]
[1739963504091,0.1490042,2739.5,2739.4,5.44979925]
[1739963511721,0.1490042,2739.5,2739.4,5.16879925]
[1739963511879,0.1490042,2739.5,2739.4,5.44779925]
[1739963514524,0.1490042,2739.5,2739.4,5.78722808]
[1739963520440,0.9235042,2739.5,2739.4,5.50822808]
[1739963521645,0.9235042,2739.5,2739.4,0.33942883]
[1739963526512,0.9235042,2739.5,2739.1,0.33942883]
[1739963528253,0.9235042,2739.5,2739.0,8.208]
[1739963528671,1.9339,2739.4,2739.0,8.208]
[1739963528852,0.8139,2739.3,2739.0,8.208]
[1739963532871,0.8139,2739.3,2738.6,0.277]
[1739963533849,0.8139,2739.3,2738.6,0.277]
[1739963536490,0.8139,2739.3,2738.7,0.8078]
[1739963537411,0.8139,2739.3,2738.6,0.277]
[1739963548953,0.8139,2739.3,2738.4,5.16879925]
[1739963549158,0.7758,2738.8,2738.4,0.275]
[1739963550558,0.7662,2738.7,2738.1,8.208]
[1739963550730,0.7662,2738.5,2738.1,8.208]
[1739963553667,0.75,2738.4,2738.1,8.208]
[1739963553968,0.75,2738.3,2738.1,8.208]
[1739963555970,3.7774,2738.2,2738.1,8.208]
[1739963556848,0.8027,2738.3,2738.1,8.208]
[1739963561638,0.8027,2738.3,2737.8,0.277]
[1739963561845,0.7532,2738.1,2737.7,0.277]
[1739963567695,0.8018,2738.3,2737.8,0.03652551]
[1739963567895,5.38,2738.7,2737.8,0.03652551]
[1739963568099,0.8018,2738.6,2737.8,0.03652551]
[1739963569390,0.8018,2738.6,2737.9,0.8133]
[1739963569599,0.8018,2738.6,2738.0,0.03651681]
[1739963569802,0.8018,2738.6,2737.9,5.98209925]
[1739963570014,8.60873472,2739.2,2737.9,5.98209925]
[1739963570015,0.7886,2739.0,2738.0,0.7712]
[1739963570300,0.7886,2739.0,2738.0,0.8077164]
[1739963570593,0.7886,2739.0,2738.0,0.7712]
[1739963571350,0.7886,2739.0,2738.1,0.03651639]
[1739963572383,0.7886,2739.0,2738.0,0.7712]
[1739963573071,0.7886,2739.0,2738.2,0.7977]
[1739963573262,0.7886,2739.0,2738.4,0.7977]
[1739963573458,0.7886,2739.0,2738.5,0.275]
[1739963579608,0.7639,2739.2,2738.6,0.7564]
[1739963581035,0.7639,2739.2,2738.5,0.275]
[1739963581195,0.7734,2739.0,2738.5,0.275]
[1739963582421,0.7562,2738.7,2738.0,13.37979925]
[1739963583879,0.7562,2738.7,2738.0,8.211]
[1739963585718,0.7562,2738.7,2737.9,0.8294]
[1739963586218,0.7562,2738.7,2737.9,1.1024]
[1739963586466,0.7562,2738.7,2738.0,0.03651889]
[1739963586748,0.7562,2738.7,2737.9,1.1024]
[1739963587143,0.7562,2738.7,2738.0,0.03651889]
[1739963587511,0.7562,2738.7,2737.9,1.1024]
[1739963590188,0.7562,2738.7,2737.9,0.8294]
[1739963590472,0.7562,2738.7,2738.0,0.273]
[1739963590775,0.7562,2738.7,2738.0,0.3095189]
[1739963591525,0.7562,2738.7,2738.0,0.273]
[1739963592224,0.7562,2738.7,2738.1,0.79531516]
[1739963592446,0.7644,2738.9,2738.1,0.79531516]
[1739963592652,0.7644,2738.9,2738.2,0.7673]
[1739963592969,5.38,2739.0,2738.2,0.7673]
[1739963593982,5.38,2739.0,2738.3,0.3406728]
[1739963595106,5.38,2739.0,2738.2,0.7673]
[1739963595756,0.7515,2739.1,2738.2,5.93609925]
[1739963597457,0.8318,2739.0,2738.2,5.16879925]
[1739963598694,0.8318,2739.0,2738.2,5.16691904]
[1739963598997,1.18851447,2739.0,2738.2,5.16691904]
[1739963600191,0.8053,2738.9,2738.2,5.16691904]
[1739963601924,0.7669,2738.7,2738.0,0.272]
[1739963602079,0.7669,2738.7,2737.8,0.7849]
[1739963602283,0.7669,2738.6,2737.7,5.16691904]
[1739963602522,0.7669,2738.6,2737.8,0.272]
[1739963607531,1.03867611,2738.6,2737.9,0.7543]
[1739963608414,0.7669,2738.6,2738.0,0.03651833]
[1739963609391,0.7669,2738.6,2737.9,0.7543]
[1739963610491,0.8074,2738.9,2738.1,0.7995]
[1739963610791,1.42614,2738.9,2738.1,0.7995]
[1739963610943,1.42614,2738.9,2737.8,0.272]
[1739963610944,0.7935,2738.8,2737.9,0.7782]
[1739963613795,0.7935,2738.8,2737.7,5.96651904]
[1739963614012,0.7935,2738.8,2738.0,0.271]
[1739963614200,0.7679,2738.6,2738.0,0.271]
[1739963616907,0.7679,2738.6,2738.1,0.03651758]
[1739963617096,0.7679,2738.6,2738.1,0.7501]
[1739963620402,0.7679,2738.6,2738.0,0.271]
[1739963620597,0.7679,2738.6,2737.8,5.16691904]
[1739963620781,0.7679,2738.6,2737.9,0.271]
[1739963622207,0.7679,2738.6,2738.0,0.03651799]
[1739963622509,0.7679,2738.6,2737.9,0.271]
[1739963624971,0.7679,2738.6,2738.0,0.03651845]
[1739963625171,0.7679,2738.6,2737.9,0.271]
[1739963627303,0.8231,2738.5,2737.9,0.271]
[1739963627503,0.8231,2738.3,2737.6,8.211]
[1739963627844,0.8231,2738.3,2737.6,8.482]
[1739963630408,0.8231,2738.3,2737.6,8.211]
[1739963630609,0.8231,2738.3,2737.6,8.482]
[1739963635362,0.8231,2738.3,2737.7,0.03652358]
[1739963635867,0.8231,2738.3,2737.6,9.2347]
[1739963637399,0.8231,2738.3,2737.6,14.40161904]
[1739963638490,0.8231,2738.3,2737.7,0.03651897]
[1739963639471,0.8231,2738.3,2737.6,14.40161904]
[1739963641006,0.7644,2738.7,2737.7,0.7991]
[1739963643217,0.7644,2738.7,2737.9,0.73562242]
[1739963643921,0.7644,2738.7,2737.7,0.7991]
[1739963644213,0.7644,2738.7,2737.6,13.64891904]
[1739963644790,0.7644,2738.7,2737.6,14.36684335]
[1739963645923,0.7812,2738.5,2737.7,0.269]
[1739963646419,0.7812,2738.5,2737.6,13.37791904]
[1739963646718,0.7812,2738.5,2737.7,0.269]
[1739963648214,0.7812,2738.5,2737.7,0.30552246]
[1739963649167,0.7812,2738.5,2737.7,0.269]
[1739963649372,0.7812,2738.5,2737.7,5.43591904]
[1739963654918,0.8254,2738.8,2737.8,0.84192049]
[1739963655072,0.8254,2738.8,2737.8,0.8054]
[1739963657072,0.8254,2738.8,2738.0,0.74729344]
[1739963657311,0.8254,2738.8,2738.1,0.03651378]
[1739963657675,0.8254,2738.8,2738.2,0.8232]
[1739963658311,0.8254,2738.8,2738.2,5.99011904]
[1739963660526,0.8254,2738.8,2738.3,0.03651167]
[1739963661335,0.8254,2738.8,2738.2,5.99011904]
[1739963670862,0.8254,2738.8,2738.2,5.16691904]
[1739963684659,0.8254,2738.8,2738.1,8.211]
[1739963684860,0.8298,2738.5,2738.1,8.211]
[1739963686252,0.7939,2738.2,2738.1,8.211]
[1739963691475,0.7939,2738.2,2737.7,0.267]
[1739963693682,0.7939,2738.2,2737.5,0.266]
[1739963701992,0.7939,2738.2,2737.6,0.86932315]
[1739963702192,0.7939,2738.2,2737.6,0.8328]
[1739963702983,0.7939,2738.2,2737.6,5.99971904]
[1739963704007,0.7728,2738.9,2737.9,2.73534472]
[1739963704210,0.7728,2738.9,2738.0,0.82061561]
[1739963704410,0.7728,2738.9,2738.0,0.7841]
[1739963704616,0.7728,2738.9,2738.3,0.73235806]
[1739963704771,0.7728,2738.9,2738.4,0.266]
[1739963704970,0.7728,2738.9,2738.4,5.43291904]
[1739963710018,0.7728,2738.9,2738.5,0.8287]
[1739963710314,0.7889,2739.4,2738.5,0.8287]
[1739963710515,0.7889,2739.4,2738.5,5.99561904]
[1739963712017,0.7889,2739.4,2738.5,5.16691904]
[1739963715289,0.7889,2739.4,2738.6,0.8145]
[1739963716537,0.7889,2739.4,2738.6,0.8510065]
[1739963716697,0.7889,2739.4,2738.6,0.8145]
[1739963717935,0.7889,2739.4,2739.0,0.73132629]
[1739963720244,0.7889,2739.4,2739.1,0.265]
[1739963722456,0.1490042,2739.5,2739.2,5.16691904]
[1739963727267,0.1490042,2739.5,2739.2,5.43649182]
[1739963728767,0.1490042,2739.5,2739.2,5.16691904]
[1739963729067,0.7821,2739.4,2739.3,0.265]
[1739963729834,0.1490042,2739.5,2739.3,0.265]
[1739963730035,0.1490042,2739.5,2739.3,1.0236]
[1739963732547,0.1490042,2739.5,2739.4,5.16691904]
[1739963734130,0.1490042,2739.5,2739.4,7.90226376]
[1739963734334,0.1490042,2739.5,2739.4,19.71226376]
[1739963734535,0.1490042,2739.5,2739.4,14.24291904]
[1739963735075,0.9315042,2739.5,2739.1,5.16691904]
[1739963735432,0.9315042,2739.5,2738.7,5.9426726]
[1739963735670,0.9315042,2739.5,2738.7,5.16691904]
[1739963736033,0.7737,2739.2,2738.7,5.16691904]
[1739963736233,0.7737,2739.2,2738.3,0.267]
[1739963739178,0.7737,2739.2,2738.4,0.03651382]
[1739963739882,0.7737,2739.2,2738.4,0.03651262]
[1739963740440,0.7737,2739.2,2738.3,0.267]
[1739963741267,0.7737,2739.2,2738.4,0.03650704]
[1739963741518,0.7737,2739.2,2738.5,5.16691904]
[1739963741677,0.7737,2739.2,2738.6,5.16691904]
[1739963743002,0.7737,2739.2,2738.6,5.90368911]
[1739963745081,0.7737,2739.2,2738.6,5.16691904]
[1739963745288,0.7737,2739.2,2738.7,0.267]
[1739963746816,0.7737,2739.2,2738.6,5.16691904]
[1739963746971,0.7737,2739.2,2738.6,5.43391904]
[1739963756794,0.7737,2739.2,2738.6,5.43291904]
[1739963762988,0.7737,2739.2,2738.7,0.03650729]
[1739963763204,0.7737,2739.2,2738.7,0.80410562]
[1739963763559,0.1490042,2739.5,2738.9,0.7676]
[1739963763760,0.1490042,2739.5,2739.0,5.20341781]
[1739963763963,0.1490042,2739.5,2739.0,13.41241781]
[1739963764115,0.1490042,2739.5,2739.0,13.37591904]
[1739963764310,0.1490042,2739.5,2739.1,0.03649887]
[1739963765214,0.1490042,2739.5,2739.0,13.37591904]
[1739963765977,0.1490042,2739.5,2739.2,0.74693593]
[1739963766416,0.1490042,2739.5,2739.3,0.03649877]
[1739963766620,0.1490042,2739.5,2739.4,0.265]
[1739963768055,0.1490042,2739.5,2739.4,5.43191904]
[1739963769520,0.1490042,2739.5,2739.4,15.06961904]
[1739963769862,0.1490042,2739.5,2739.4,15.61961904]
[1739963770061,0.1490042,2739.5,2739.4,14.24191904]
[1739963774743,0.1490042,2739.5,2739.4,15.05281904]
[1739963774950,0.1490042,2739.5,2739.4,15.60281904]
[1739963777236,0.1490042,2739.5,2739.4,18.60281904]
[1739963781304,0.7592,2740.1,2739.4,21.33816376]
[1739963781602,0.265,2741.8,2739.4,21.33816376]
[1739963781603,0.8293,2741.3,2739.8,0.55]
[1739963781786,0.8293,2741.3,2739.9,13.97691904]
[1739963782019,3.20548788,2741.4,2739.9,13.97691904]
[1739963782020,0.7769,2741.2,2739.9,13.97691904]
[1739963782305,0.7769,2741.2,2740.0,0.7906]
[1739963782487,2.73534472,2741.1,2740.0,0.7906]
[1739963782689,0.8037,2741.0,2740.0,0.7906]
[1739963783508,0.8037,2741.0,2740.2,0.72778468]
[1739963783805,0.8037,2741.0,2740.3,0.265]
[1739963784711,0.7879,2740.7,2740.2,0.265]
[1739963784877,0.7879,2740.7,2740.1,0.265]
[1739963785386,0.7879,2740.7,2740.0,8.206]
[1739963785577,0.7879,2740.5,2740.0,8.206]
[1739963786178,0.7879,2740.5,2740.1,0.03649049]
[1739963786469,0.7879,2740.5,2740.0,8.206]
[1739963786988,0.7879,2740.5,2740.1,0.03649048]
[1739963787292,0.7879,2740.5,2740.0,8.206]
[1739963787685,0.8159,2741.0,2740.1,14.52691904]
[1739963787886,0.8159,2741.0,2740.1,13.97691904]
[1739963789109,0.8159,2741.0,2740.2,0.7538]
[1739963789311,0.8159,2741.0,2740.2,1.48390208]
[1739963790042,0.7962,2741.5,2740.3,5.92071904]
[1739963790243,0.7962,2741.5,2740.4,5.16691904]
[1739963790923,0.8095,2741.3,2740.4,5.16691904]
[1739963796129,0.8095,2741.3,2740.5,0.8249]
[1739963797844,0.7696,2741.7,2740.5,0.8249]
[1739963798727,0.7696,2741.7,2740.9,0.8286]
[1739963798933,0.7949,2741.9,2741.0,6.26251904]
[1739963799204,0.11335551,2742.0,2741.2,0.8286]
[1739963799918,0.11335551,2742.0,2741.3,0.72002046]
[1739963800639,0.11335551,2742.0,2741.4,5.16691904]
[1739963800844,0.7694,2741.9,2741.4,5.16691904]
[1739963802025,0.11335551,2742.0,2741.4,5.96141904]
[1739963802736,0.7673,2741.9,2741.4,5.16691904]
[1739963803735,0.7673,2741.9,2741.3,0.269]
[1739963805564,0.11335551,2742.0,2741.4,0.03647519]
[1739963805776,0.11335551,2742.0,2741.5,0.8022]
[1739963806064,0.11335551,2742.0,2741.5,5.96911904]
[1739963808882,0.11335551,2742.0,2741.6,0.036469]
[1739963809638,0.11335551,2742.0,2741.5,5.96911904]
[1739963809955,0.11335551,2742.0,2741.6,0.03646902]
[1739963810150,0.11335551,2742.0,2741.5,5.96911904]
[1739963810377,0.7963,2741.9,2741.5,5.16691904]
[1739963810754,0.11335551,2742.0,2741.5,5.16691904]
[1739963811442,0.11335551,2742.0,2741.6,0.8251]
[1739963811783,0.11335551,2742.0,2741.7,0.03646899]
[1739963812144,0.11335551,2742.0,2741.6,0.8251]
[1739963813872,0.11335551,2742.0,2741.7,0.03646898]
[1739963814071,0.11335551,2742.0,2741.6,0.8251]
[1739963815994,0.11335551,2742.0,2741.5,5.16691904]
[1739963818077,0.8092,2741.9,2741.5,5.16691904]
[1739963819863,0.8092,2741.9,2741.2,8.47]
[1739963821100,0.92,2741.7,2741.2,8.202]
[1739963822607,0.92,2741.7,2741.3,0.0364749]
[1739963822810,0.92,2741.7,2741.2,8.202]
[1739963823981,0.8145,2741.6,2741.2,8.202]
[1739963825272,0.8145,2741.6,2741.1,0.268]
[1739963828622,0.92,2741.7,2741.1,0.268]
[1739963828812,1.6848,2741.7,2741.1,0.268]
[1739963835639,0.8265,2741.6,2740.9,5.16691904]
[1739963835791,0.8265,2741.1,2740.6,5.16691904]
[1739963835985,3.92,2741.7,2740.6,5.16691904]
[1739963835986,3.56184472,2740.9,2740.6,5.16691904]
[1739963836201,0.8265,2740.8,2740.1,5.16691904]
[1739963836492,0.7584,2740.7,2739.9,8.202]
[1739963838340,0.7584,2740.7,2739.9,8.469]
[1739963839449,2.73534472,2740.6,2739.9,8.469]
[1739963839771,0.8061,2740.4,2739.9,8.469]
[1739963843269,2.73534472,2740.3,2739.9,8.202]
[1739963843435,0.7927,2740.2,2739.9,8.202]
[1739963848761,2.73534472,2740.2,2739.9,8.202]
[1739963848939,0.8236,2740.1,2739.9,8.202]
[1739963849770,2.55894472,2740.2,2739.9,8.202]
[1739963849987,2.81483919,2740.2,2739.9,8.202]
[1739963851588,2.81483919,2740.2,2739.5,5.16691904]
[1739963852249,3.0,2740.1,2739.2,5.16691904]
[1739963854685,0.8078,2739.5,2739.2,5.16691904]
[1739963854910,0.8078,2739.5,2739.1,8.472]
[1739963855791,0.8078,2739.5,2738.7,1.56038064]
[1739963856276,0.8078,2739.5,2738.7,0.73158064]
[1739963856477,0.8078,2739.5,2738.7,0.99758064]
[1739963856708,0.8078,2739.5,2738.7,0.266]
[1739963860716,0.8275,2739.2,2738.6,5.16691904]
[1739963862150,0.8275,2739.2,2738.4,0.266]
[1739963862316,1.18378447,2739.2,2738.4,0.266]